bitfinex-derivatives/quotes_BTCF0:USTF0_20240903
["timestamp","ask_amount","ask_price","bid_price","bid_amount"]
[1725359207032,4e-05,59180.0,59177.0,0.23]
[1725359207318,4e-05,59180.0,59179.0,0.23]
[1725359208824,4e-05,59180.0,59179.0,0.231]
[1725359209418,4e-05,59180.0,59179.0,0.232]
[1725359212215,0.36004,59180.0,59172.0,0.0039]
[1725359212421,0.067605,59170.0,59169.0,0.0039]
[1725359212620,0.067605,59170.0,59163.0,0.09735357]
[1725359212621,0.067609,59166.0,59165.0,0.23539659]
[1725359212921,0.068009,59166.0,59163.0,0.00025357]
[1725359213125,0.0004,59164.0,59163.0,0.00025357]
[1725359213324,0.298012,59164.0,59163.0,0.00025357]
[1725359213825,1.405092,59164.0,59163.0,0.00025357]
[1725359214025,1.881504,59164.0,59163.0,0.00025357]
[1725359214523,1.881504,59164.0,59156.0,0.0039]
[1725359214524,0.06762,59157.0,59156.0,0.0039]
[1725359214725,0.5908,59157.0,59151.0,0.067626]
[1725359214927,0.0004,59152.0,59151.0,0.067626]
[1725359215317,0.0004,59152.0,59144.0,0.3647]
[1725359215318,0.0432,59156.0,59150.0,0.23]
[1725359215629,0.3612,59157.0,59154.0,0.067623]
[1725359215630,0.30289568,59157.0,59154.0,0.067623]
[1725359215923,0.30289568,59157.0,59156.0,0.08332931]
[1725359216129,0.29689568,59157.0,59156.0,0.21215527]
[1725359216432,0.067621,59156.0,59150.0,0.23]
[1725359216626,0.067621,59156.0,59151.0,0.12882592]
[1725359216826,0.067621,59156.0,59155.0,0.08337211]
[1725359217130,0.067621,59156.0,59155.0,0.21219803]
[1725359217321,0.067622,59155.0,59154.0,0.08337211]
[1725359217521,0.52849568,59157.0,59154.0,0.12882787]
[1725359217722,0.067621,59156.0,59155.0,0.08341636]
[1725359217928,0.067621,59156.0,59153.0,0.08341636]
[1725359217929,0.002,59156.0,59153.0,0.08341636]
[1725359218236,0.002,59156.0,59155.0,0.297622]
[1725359218440,0.00025203,59159.0,59156.0,0.067621]
[1725359218723,0.00025203,59159.0,59158.0,0.297618]
[1725359218929,0.00025203,59159.0,59158.0,1.09034751]
[1725359219118,0.00025203,59159.0,59158.0,1.69034751]
[1725359221130,0.00425203,59159.0,59158.0,1.70034751]
[1725359221428,0.3608,59164.0,59163.0,0.084516]
[1725359221630,0.3608,59164.0,59163.0,0.44334369]
[1725359221829,0.3608,59164.0,59163.0,0.54348516]
[1725359222135,0.3608,59164.0,59163.0,0.12882769]
[1725359222821,0.3608,59164.0,59163.0,0.216307]
[1725359223434,0.3608,59164.0,59163.0,0.239]
[1725359224136,0.3618,59164.0,59163.0,0.234]
[1725359224824,0.3618,59164.0,59163.0,0.318516]
[1725359225025,0.4618,59164.0,59163.0,0.318516]
[1725359225528,1.883395,59164.0,59163.0,0.004]
[1725359225734,1.882395,59164.0,59163.0,0.05412548]
[1725359226232,1.79788,59164.0,59163.0,0.001]
[1725359226435,1.96691,59164.0,59163.0,0.001]
[1725359227026,1.96891,59164.0,59163.0,0.002]
[1725359227234,2.06891,59164.0,59163.0,0.002]
[1725359228132,0.084527,59155.0,59154.0,0.0039]
[1725359228432,0.084537,59148.0,59147.0,0.00025357]
[1725359228730,0.554737,59148.0,59147.0,0.00025357]
[1725359228933,0.638274,59148.0,59147.0,0.00025357]
[1725359229125,1.660937,59148.0,59147.0,0.00025357]
[1725359229327,0.3612,59148.0,59147.0,0.00025357]
[1725359229526,0.3592,59148.0,59147.0,0.08479257]
[1725359230128,0.3592,59148.0,59147.0,0.08579257]
[1725359230129,0.3612,59148.0,59147.0,0.08579257]
[1725359230732,0.3592,59148.0,59147.0,0.08479257]
[1725359230937,0.3612,59148.0,59147.0,0.08479257]
[1725359231326,0.3612,59148.0,59147.0,0.08579257]
[1725359232238,0.3622,59148.0,59147.0,0.08479257]
[1725359232639,0.0034,59148.0,59147.0,0.08479257]
[1725359233038,0.5918,59155.0,59154.0,0.084529]
[1725359233039,0.001,59155.0,59154.0,0.084529]
[1725359233336,0.084512,59166.0,59159.0,0.08452]
[1725359233552,0.23,59168.0,59160.0,1.76]
[1725359233739,0.35,59168.0,59160.0,1.76]
[1725359233935,0.3608,59170.0,59168.0,0.084507]
[1725359234442,0.3608,59175.0,59169.0,0.084507]
[1725359234743,0.3608,59175.0,59174.0,0.0845]
[1725359235929,0.3628,59175.0,59174.0,0.0855]
[1725359236242,0.3668,59175.0,59174.0,0.0865]
[1725359239235,0.3668,59175.0,59174.0,0.1331]
[1725359240944,0.3668,59175.0,59174.0,0.3631]
[1725359243337,0.3968,59175.0,59174.0,0.3631]
[1725359244135,0.05,59181.0,59174.0,0.3631]
[1725359244136,0.05,59181.0,59179.0,0.084493]
[1725359244343,0.44319557,59196.0,59179.0,0.084493]
[1725359244344,0.0039,59193.0,59192.0,0.084475]
[1725359244532,0.44319557,59196.0,59192.0,0.084475]
[1725359244533,0.44407557,59196.0,59195.0,0.08447]
[1725359244727,0.44319557,59196.0,59195.0,0.08447]
[1725359246034,0.44519557,59196.0,59195.0,0.001]
[1725359246341,0.57519557,59196.0,59195.0,0.002]
[1725359246532,0.65966457,59196.0,59195.0,0.002]
[1725359248739,0.57519557,59196.0,59195.0,0.002]
[1725359249140,0.44519557,59196.0,59195.0,0.232]
[1725359251342,0.44519557,59196.0,59195.0,0.31647]
[1725359251541,0.08439557,59196.0,59195.0,0.40094]
[1725359251844,0.08439557,59196.0,59195.0,0.31647]
[1725359253648,0.08439557,59196.0,59195.0,0.40094]
[1725359253847,0.08439557,59196.0,59195.0,0.31647]
[1725359254836,0.08439557,59196.0,59195.0,0.41277]
[1725359255741,0.08439557,59196.0,59195.0,0.49724]
[1725359255938,0.08439557,59196.0,59195.0,0.41277]
[1725359256340,0.08439557,59196.0,59195.0,0.49724]
[1725359258149,0.08439557,59196.0,59195.0,0.41277]
[1725359258350,0.08439557,59196.0,59195.0,0.49724]
[1725359260757,0.08439557,59196.0,59195.0,0.18277]
[1725359261063,0.08439557,59196.0,59195.0,0.41277]
[1725359262047,0.08439557,59196.0,59195.0,0.49724]
[1725359262245,0.04213752,59196.0,59195.0,0.49724]
[1725359264051,0.04213752,59196.0,59195.0,0.58171]
[1725359264445,0.04213752,59196.0,59195.0,0.49724]
[1725359264853,0.04213752,59196.0,59195.0,0.58171]
[1725359265045,0.04213752,59196.0,59195.0,0.54736548]
[1725359265357,0.04213752,59196.0,59195.0,0.63183548]
[1725359266551,0.04213752,59196.0,59195.0,0.54736548]
[1725359267055,0.04213752,59196.0,59195.0,0.63183548]
[1725359267351,0.04213752,59196.0,59195.0,0.85804]
[1725359267760,0.04213752,59196.0,59195.0,0.907977]
[1725359267946,0.04213752,59196.0,59195.0,0.94251]
[1725359268855,0.04213752,59196.0,59195.0,0.85804]
[1725359269748,0.04213752,59196.0,59195.0,0.85884]
[1725359270851,0.04213752,59196.0,59195.0,0.94331]
[1725359272352,0.04213752,59196.0,59195.0,0.85884]
[1725359272555,0.04213752,59196.0,59195.0,0.94331]
[1725359272751,0.04213752,59196.0,59195.0,0.85884]
[1725359274451,0.04213752,59196.0,59195.0,0.94331]
[1725359275245,0.04213752,59196.0,59195.0,1.07202355]
[1725359275757,0.04213752,59196.0,59195.0,0.98755355]
[1725359275959,0.04213752,59196.0,59195.0,1.07202355]
[1725359276665,0.04213752,59196.0,59195.0,0.98755355]
[1725359277650,0.04213752,59196.0,59195.0,1.07202355]
[1725359277858,0.04213752,59196.0,59195.0,0.98755355]
[1725359279159,0.04213752,59196.0,59195.0,1.07202355]
[1725359279553,0.04213752,59196.0,59195.0,0.98755355]
[1725359280160,0.0039,59208.0,59195.0,2.08207897]
[1725359280357,0.0021,59229.0,59207.0,0.8208]
[1725359280553,0.1221,59229.0,59228.0,0.23]
[1725359280859,0.1221,59229.0,59228.0,0.28014098]
[1725359281078,0.1221,59229.0,59228.0,0.23]
[1725359281358,0.0021,59229.0,59228.0,0.314423]
[1725359281759,0.0021,59229.0,59228.0,0.38120044]
[1725359281962,0.0021,59229.0,59228.0,0.314423]
[1725359282356,0.0021,59229.0,59228.0,0.676223]
[1725359283161,0.0021,59229.0,59228.0,0.002]
[1725359284954,0.6021,59229.0,59228.0,0.002]
[1725359285150,0.0021,59229.0,59228.0,0.002]
[1725359287865,0.0021,59229.0,59228.0,0.0028]
[1725359289971,0.196522,59229.0,59228.0,0.0028]
[1725359290861,1.303042,59229.0,59228.0,0.0028]
[1725359291355,1.387464,59229.0,59228.0,0.0028]
[1725359292756,0.084429,59224.0,59223.0,0.00025335]
[1725359292965,0.785229,59224.0,59223.0,0.00025335]
[1725359293370,1.891789,59224.0,59223.0,0.00025335]
[1725359294072,1.891789,59224.0,59223.0,0.00225335]
[1725359295472,1.89737706,59224.0,59223.0,0.00225335]
[1725359295975,1.34177706,59224.0,59223.0,0.00225335]
[1725359296363,1.34177706,59224.0,59223.0,0.00125335]
[1725359296670,1.34177706,59224.0,59223.0,0.00025335]
[1725359296864,1.94177706,59224.0,59223.0,0.00025335]
[1725359297265,1.94177706,59224.0,59223.0,0.00225335]
[1725359299276,0.084449,59212.0,59211.0,0.084446]
[1725359299477,0.5908,59212.0,59211.0,0.084446]
[1725359300364,0.675246,59212.0,59211.0,0.086446]
[1725359300771,1.181886,59212.0,59211.0,0.086446]
[1725359300970,1.181886,59212.0,59211.0,0.089446]
[1725359301676,0.5908,59212.0,59211.0,0.089446]
[1725359302784,0.5908,59212.0,59211.0,0.087446]
[1725359303072,0.5908,59212.0,59211.0,0.084446]
[1725359304774,0.7108,59212.0,59211.0,0.084446]
[1725359305577,0.7108,59212.0,59206.0,0.05027836]
[1725359305878,0.3612,59207.0,59206.0,0.13473336]
[1725359306684,0.3612,59207.0,59206.0,0.08470835]
[1725359306979,0.3612,59207.0,59206.0,0.14074661]
[1725359307177,0.0004,59207.0,59206.0,0.14074661]
[1725359307375,0.0004,59207.0,59206.0,0.09670835]
[1725359309470,0.1104,59207.0,59206.0,0.09270835]
[1725359309876,0.1104,59207.0,59206.0,0.08870835]
[1725359311471,0.084467,59197.0,59196.0,0.00144]
[1725359311680,0.4304,59197.0,59196.0,0.0039]
[1725359311882,0.444867,59197.0,59196.0,0.0039]
[1725359312182,0.0004,59197.0,59196.0,0.088369]
[1725359312676,0.0004,59197.0,59196.0,0.15144986]
[1725359313373,0.0004,59197.0,59196.0,0.15344986]
[1725359313573,0.2304,59197.0,59196.0,0.15344986]
[1725359313787,0.2304,59197.0,59196.0,0.14044986]
[1725359314380,0.2304,59197.0,59196.0,0.090369]
[1725359314983,0.0004,59197.0,59196.0,0.090369]
[1725359315379,0.0004,59197.0,59196.0,0.089369]
[1725359315590,0.0004,59197.0,59196.0,0.105369]
[1725359316101,0.0004,59197.0,59196.0,0.096369]
[1725359316284,0.0004,59197.0,59196.0,0.099369]
[1725359317584,0.0004,59197.0,59196.0,0.097369]
[1725359318978,0.084867,59197.0,59196.0,0.0039]
[1725359319189,0.084867,59197.0,59196.0,0.0129]
[1725359319778,0.084867,59197.0,59196.0,0.0109]
[1725359320187,0.194867,59197.0,59196.0,0.0099]
[1725359320392,0.194867,59197.0,59196.0,0.0069]
[1725359320393,1.386134,59197.0,59196.0,0.0069]
[1725359321888,0.168946,59193.0,59192.0,0.05008086]
[1725359322077,0.879746,59193.0,59192.0,0.05008086]
[1725359322278,1.986586,59193.0,59192.0,0.05008086]
[1725359322479,1.986986,59193.0,59192.0,0.05008086]
[1725359322683,1.984986,59193.0,59192.0,0.05008086]
[1725359323488,1.984986,59193.0,59192.0,0.05108086]
[1725359323688,1.985986,59193.0,59192.0,0.05208086]
[1725359325393,0.084485,59185.0,59184.0,0.0981]
[1725359325591,0.194885,59185.0,59184.0,0.0981]
[1725359325776,0.194885,59185.0,59182.0,0.084489]
[1725359325983,0.314886,59184.0,59182.0,0.084489]
[1725359326191,0.444886,59184.0,59183.0,0.084487]
[1725359326989,0.444886,59184.0,59183.0,0.001]
[1725359328691,1.551766,59184.0,59183.0,0.001]
[1725359328894,1.636252,59184.0,59183.0,0.001]
[1725359329396,1.636252,59184.0,59183.0,0.002]
[1725359330494,1.636252,59184.0,59178.0,0.00025335]
[1725359330495,0.084493,59179.0,59178.0,0.00025335]
[1725359330695,0.785693,59179.0,59178.0,0.00025335]
[1725359332498,0.785693,59179.0,59178.0,0.01325335]
[1725359333097,1.05492985,59179.0,59178.0,0.00758525]
[1725359336101,0.97043685,59179.0,59178.0,0.09208025]
[1725359336301,0.74043685,59179.0,59178.0,0.40657525]
[1725359336500,0.00088,59185.0,59184.0,0.084486]
[1725359336803,0.03,59185.0,59184.0,0.314886]
[1725359337002,0.03,59185.0,59184.0,0.821766]
[1725359337197,0.03,59185.0,59184.0,0.084886]
[1725359337700,0.031,59185.0,59184.0,0.084886]
[1725359338103,0.06,59185.0,59184.0,0.084886]
[1725359339596,0.06,59185.0,59184.0,0.179386]
[1725359340706,0.06,59185.0,59184.0,0.186386]
[1725359341007,0.06,59185.0,59184.0,0.192386]
[1725359341209,0.06,59185.0,59184.0,0.1009]
[1725359341404,0.06,59185.0,59184.0,0.1049]
[1725359341604,0.12,59185.0,59184.0,0.1049]
[1725359341810,0.12,59185.0,59184.0,0.1029]
[1725359342005,0.12,59185.0,59184.0,0.23756707]
[1725359342207,0.12,59185.0,59184.0,0.187386]
[1725359342400,0.12,59185.0,59184.0,0.548186]
[1725359342802,0.12,59185.0,59184.0,0.61109409]
[1725359343002,0.12,59185.0,59184.0,0.547186]
[1725359344117,0.12,59185.0,59184.0,0.555186]
[1725359344338,0.12,59185.0,59184.0,0.554186]
[1725359345106,0.121,59185.0,59184.0,0.560186]
[1725359345305,0.121,59185.0,59184.0,0.62709409]
[1725359346627,0.121,59185.0,59184.0,0.62609409]
[1725359347626,0.121,59185.0,59184.0,0.61709409]
[1725359347923,0.12,59185.0,59184.0,0.61709409]
[1725359348229,0.12,59185.0,59184.0,0.62609409]
[1725359348428,0.12,59185.0,59184.0,0.62595979]
[1725359349131,0.12,59185.0,59184.0,0.26515979]
[1725359349321,0.12,59185.0,59184.0,0.26415979]
[1725359350721,0.12,59185.0,59184.0,0.25515979]
[1725359350928,0.12,59185.0,59184.0,0.26415979]
[1725359352130,0.12,59185.0,59184.0,0.197386]
[1725359353031,0.12,59185.0,59184.0,0.198386]
[1725359353524,0.12,59185.0,59184.0,0.188386]
[1725359353723,0.12,59185.0,59184.0,0.198386]
[1725359354728,0.12,59185.0,59184.0,0.20376842]
[1725359355319,0.12,59185.0,59184.0,0.19476842]
[1725359355518,0.12,59185.0,59184.0,0.20476842]
[1725359356537,0.12,59185.0,59184.0,0.15906842]
[1725359356728,0.12,59185.0,59184.0,0.0204]
[1725359356951,0.12,59185.0,59184.0,0.0194]
[1725359357631,0.12,59185.0,59184.0,0.103886]
[1725359360341,0.12,59185.0,59184.0,0.694686]
[1725359360538,0.00025335,59189.0,59188.0,0.08448]
[1725359360727,0.00025335,59189.0,59188.0,0.08488]
[1725359360728,0.04025335,59189.0,59188.0,0.08488]
[1725359361726,0.04025335,59189.0,59188.0,0.15168678]
[1725359362035,0.04025335,59189.0,59188.0,0.15668678]
[1725359362227,0.01,59189.0,59188.0,0.2354]
[1725359362430,0.01,59189.0,59188.0,0.36958]
[1725359362632,0.445268,59197.0,59191.0,0.084476]
[1725359362837,0.11,59197.0,59196.0,0.0004]
[1725359363037,0.11,59197.0,59196.0,0.591669]
[1725359363336,0.53168,59203.0,59202.0,0.08446]
[1725359363337,0.3608,59203.0,59202.0,0.08446]
[1725359363534,0.3608,59203.0,59202.0,0.31486]
[1725359363732,0.00025335,59208.0,59202.0,0.38163811]
[1725359363932,0.05025335,59208.0,59207.0,0.0004]
[1725359364836,0.28025335,59208.0,59207.0,0.0004]
[1725359365437,0.28025335,59208.0,59207.0,0.0014]
[1725359366434,0.28025335,59208.0,59207.0,0.0024]
[1725359367937,1.47138535,59208.0,59207.0,0.0024]
[1725359368144,0.36470535,59208.0,59207.0,0.0024]
[1725359371040,0.72550535,59208.0,59207.0,0.0024]
[1725359375444,0.36470535,59208.0,59207.0,0.0024]
[1725359377442,0.084452,59208.0,59207.0,0.0024]
[1725359377638,0.144452,59208.0,59207.0,0.0024]
[1725359378540,0.06,59208.0,59207.0,0.086853]
[1725359383551,0.144452,59208.0,59207.0,0.0024]
[1725359383940,0.194452,59208.0,59207.0,0.0024]
[1725359387455,0.204452,59208.0,59207.0,0.0024]
[1725359388247,0.434452,59208.0,59207.0,0.0024]
[1725359390450,0.12,59208.0,59207.0,0.0024]
[1725359390956,0.12,59208.0,59207.0,0.0479]
[1725359391545,0.12,59208.0,59207.0,0.132353]
[1725359391747,0.00025335,59213.0,59207.0,0.0479]
[1725359391952,0.00025335,59213.0,59212.0,0.0004]
[1725359392450,0.00025335,59213.0,59212.0,0.084846]
[1725359393752,0.00025335,59213.0,59212.0,0.087846]
[1725359394346,0.00025335,59213.0,59212.0,0.089846]
[1725359394861,0.00025335,59213.0,59212.0,0.135946]
[1725359395649,0.00025335,59213.0,59212.0,0.14149329]
[1725359396750,0.12025335,59213.0,59212.0,0.135946]
[1725359397451,0.35025335,59213.0,59212.0,0.0054]
[1725359398758,0.43469835,59213.0,59212.0,0.0054]
[1725359399162,0.43469835,59213.0,59212.0,0.0024]
[1725359399355,0.43469835,59213.0,59212.0,0.0044]
[1725359399758,0.43469835,59213.0,59212.0,0.0024]
[1725359399961,0.43469835,59213.0,59212.0,0.0044]
[1725359400757,0.43469835,59213.0,59212.0,0.0024]
[1725359401762,0.43469835,59213.0,59212.0,0.0004]
[1725359401964,0.43469835,59213.0,59212.0,0.0014]
[1725359403556,0.43469835,59213.0,59212.0,0.0004]
[1725359404255,0.43469835,59213.0,59203.0,0.41091872]
[1725359404256,0.084456,59205.0,59200.0,0.05401872]
[1725359404553,0.084456,59205.0,59196.0,0.07082496]
[1725359404554,0.434856,59205.0,59199.0,0.05011872]
[1725359404954,0.434856,59205.0,59198.0,0.445266]
[1725359405261,0.204856,59205.0,59201.0,0.23]
[1725359405463,0.204856,59205.0,59202.0,0.084459]
[1725359405658,0.204856,59205.0,59203.0,0.084459]
[1725359405966,0.0004,59205.0,59204.0,0.31471035]
[1725359406554,0.0004,59205.0,59204.0,0.31771035]
[1725359407365,0.0004,59205.0,59204.0,0.82443035]
[1725359407663,0.0004,59205.0,59204.0,0.83143035]
[1725359407860,0.0004,59205.0,59204.0,1.43143035]
[1725359408257,0.0004,59205.0,59204.0,1.42843035]
[1725359408461,0.0004,59205.0,59204.0,1.20743035]
[1725359408655,0.0004,59205.0,59204.0,1.43743035]
[1725359408862,0.0004,59205.0,59204.0,1.43043035]
[1725359409065,0.0004,59205.0,59204.0,1.446903]
[1725359410068,0.00025335,59213.0,59210.0,0.084448]
[1725359410275,0.00025335,59213.0,59212.0,0.0004]
[1725359410764,0.00025335,59213.0,59212.0,0.084846]
[1725359411569,0.00025335,59213.0,59212.0,0.086846]
[1725359411962,0.00025335,59213.0,59212.0,0.15367096]
[1725359412368,0.00025335,59213.0,59212.0,0.086846]
[1725359413965,0.00025335,59213.0,59212.0,0.087846]
[1725359417373,0.00025335,59213.0,59212.0,0.09344173]
[1725359418074,0.00025335,59213.0,59212.0,0.0034]
[1725359418268,0.12025335,59213.0,59212.0,0.0034]
[1725359418464,0.20469835,59213.0,59212.0,0.0034]
[1725359420566,0.20469835,59213.0,59212.0,0.0024]
[1725359420772,0.20469835,59213.0,59212.0,0.0034]
[1725359421773,0.20469835,59213.0,59212.0,0.0024]
[1725359422275,0.20469835,59213.0,59212.0,0.0004]
[1725359423278,0.28914335,59213.0,59212.0,0.0004]
[1725359425873,0.28914335,59213.0,59204.0,0.00025335]
[1725359425874,0.084456,59205.0,59204.0,0.00025335]
[1725359426078,0.194856,59205.0,59204.0,0.00025335]
[1725359427874,0.279312,59205.0,59204.0,0.00025335]
[1725359428079,0.279312,59205.0,59204.0,0.05035373]
[1725359428268,0.279312,59205.0,59204.0,0.06335373]
[1725359429284,0.279312,59205.0,59204.0,0.01325335]
[1725359430373,0.363768,59205.0,59204.0,0.01325335]
[1725359430573,0.084467,59197.0,59196.0,0.05010038]
[1725359430776,0.785267,59197.0,59196.0,0.05010038]
[1725359430981,0.084469,59196.0,59195.0,0.05010038]
[1725359431175,0.434869,59196.0,59195.0,0.05010038]
[1725359431376,0.08447,59195.0,59194.0,0.05010038]
[1725359431580,0.20487,59195.0,59194.0,0.05010038]
[1725359431978,0.084472,59194.0,59193.0,0.05010038]
[1725359432177,0.204872,59194.0,59193.0,0.05010038]
[1725359432380,0.084473,59193.0,59192.0,0.05010038]
[1725359432579,0.420873,59193.0,59192.0,0.05010038]
[1725359432971,0.406873,59193.0,59192.0,0.05010038]
[1725359433981,0.1204,59193.0,59192.0,0.084475]
[1725359434184,0.0004,59193.0,59192.0,0.084475]
[1725359434781,0.0014,59193.0,59192.0,0.088475]
[1725359434985,0.0024,59193.0,59192.0,0.088475]
[1725359437684,0.0024,59193.0,59192.0,0.318475]
[1725359439987,0.0024,59193.0,59192.0,0.32399654]
[1725359440187,0.0024,59193.0,59192.0,0.83083654]
[1725359441979,0.0024,59193.0,59192.0,0.32399654]
[1725359446195,0.0024,59193.0,59192.0,0.68479654]
[1725359448611,0.0024,59193.0,59192.0,0.09399654]
[1725359449411,0.0024,59193.0,59192.0,0.32399654]
[1725359450015,0.0024,59193.0,59192.0,0.31272363]
[1725359451220,0.0024,59193.0,59192.0,0.39076115]
[1725359451415,0.0024,59193.0,59192.0,0.3907768]
[1725359453309,0.0024,59193.0,59192.0,0.30720209]
[1725359455617,0.086873,59193.0,59192.0,0.13272709]
[1725359456118,0.086873,59193.0,59192.0,0.1327355]
[1725359457124,0.086873,59193.0,59192.0,0.004]
[1725359458216,0.206873,59193.0,59192.0,0.004]
[1725359458418,0.256673,59193.0,59192.0,0.004]
[1725359463017,0.341146,59193.0,59192.0,0.004]
[1725359464128,1.447986,59193.0,59192.0,0.004]
[1725359464330,1.447986,59193.0,59189.0,0.00025335]
[1725359464331,0.168954,59190.0,59189.0,0.00025335]
[1725359464629,0.168954,59190.0,59180.0,0.084492]
[1725359464630,0.08449,59181.0,59180.0,0.084492]
[1725359464819,0.17489,59181.0,59180.0,0.084492]
[1725359465116,0.17489,59181.0,59176.0,0.08364599]
[1725359465117,0.084496,59178.0,59176.0,0.08364599]
[1725359465316,0.084497,59176.0,59174.0,0.08364599]
[1725359465528,0.0004,59175.0,59174.0,0.16814599]
[1725359465727,0.084497,59176.0,59175.0,0.084499]
[1725359465922,0.084497,59176.0,59175.0,0.084899]
[1725359466318,0.084497,59176.0,59175.0,0.0004]
[1725359467548,0.082497,59176.0,59175.0,0.0004]
[1725359468126,0.083497,59176.0,59175.0,0.06723433]
[1725359468629,0.084497,59176.0,59175.0,0.06723433]
[1725359469223,0.084497,59176.0,59175.0,0.0004]
[1725359469632,0.002,59176.0,59175.0,0.0004]
[1725359469825,0.002,59176.0,59175.0,0.15173333]
[1725359470026,0.002,59176.0,59175.0,0.084899]
[1725359470331,0.0004,59177.0,59176.0,0.084497]
[1725359470523,0.0004,59177.0,59176.0,0.174897]
[1725359471034,0.0004,59177.0,59176.0,1.704897]
[1725359471739,0.0024,59177.0,59176.0,1.704897]
[1725359471928,0.0024,59177.0,59176.0,1.844897]
[1725359474127,0.0024,59177.0,59176.0,1.890797]
[1725359475841,0.0024,59177.0,59176.0,1.95756404]
[1725359476336,0.0024,59177.0,59176.0,1.890797]
[1725359476730,0.0024,59177.0,59176.0,1.89628311]
[1725359478137,0.0024,59177.0,59176.0,3.08774011]
[1725359478328,0.0004,59190.0,59189.0,0.084479]
[1725359478528,0.23,59206.0,59189.0,0.084479]
[1725359478529,0.084459,59203.0,59189.0,0.5912]
[1725359478732,0.184459,59203.0,59202.0,0.0004]
[1725359479526,0.414459,59203.0,59202.0,0.0004]
[1725359481431,0.415459,59203.0,59202.0,0.0004]
[1725359481631,0.333,59203.0,59202.0,0.0004]
[1725359482532,0.332,59203.0,59202.0,0.0004]
[1725359483738,0.331,59203.0,59202.0,0.0004]
[1725359484138,0.332,59203.0,59202.0,0.0004]
[1725359484537,0.333,59203.0,59202.0,0.0004]
[1725359485331,0.417459,59203.0,59202.0,0.0004]
[1725359485648,1.693097,59203.0,59202.0,0.0004]
[1725359486740,0.168932,59198.0,59197.0,0.00025335]
[1725359486939,0.880132,59198.0,59197.0,0.00025335]
[1725359487243,1.986892,59198.0,59197.0,0.00025335]
[1725359488038,1.986892,59198.0,59197.0,0.00425335]
[1725359488234,1.986892,59198.0,59197.0,0.00925335]
[1725359488637,2.071358,59198.0,59197.0,0.00925335]
[1725359488942,2.167958,59198.0,59197.0,0.00925335]
[1725359489545,2.167958,59198.0,59187.0,0.0039]
[1725359489546,0.08448,59188.0,59187.0,0.0039]
[1725359489749,0.7112,59188.0,59180.0,0.084491]
[1725359489935,0.7112,59188.0,59179.0,0.045]
[1725359489936,0.445287,59183.0,59182.0,0.084489]
[1725359490243,0.4408,59183.0,59182.0,0.084489]
[1725359491034,0.4198,59183.0,59182.0,0.084489]
[1725359491742,0.4208,59183.0,59182.0,0.091489]
[1725359492646,0.4218,59183.0,59182.0,0.091489]
[1725359494552,0.4218,59183.0,59182.0,0.007]
[1725359495456,0.002,59183.0,59182.0,0.158235]
[1725359495945,0.002,59183.0,59182.0,0.091489]
[1725359500548,0.112,59183.0,59182.0,0.091489]
[1725359500848,0.112,59183.0,59182.0,0.007]
[1725359501051,0.112,59183.0,59182.0,0.0737933]
[1725359501753,0.112,59183.0,59182.0,0.07928424]
[1725359502354,0.112,59183.0,59182.0,0.0737933]
[1725359502757,0.196487,59183.0,59182.0,0.0737933]
[1725359503957,0.196487,59183.0,59182.0,0.007]
[1725359505959,0.557287,59183.0,59182.0,0.007]
[1725359508350,0.557287,59183.0,59182.0,0.05710059]
[1725359509157,0.557287,59183.0,59182.0,0.007]
[1725359511170,0.557287,59183.0,59182.0,0.05710232]
[1725359512250,0.557287,59183.0,59182.0,0.007]
[1725359512452,0.641774,59183.0,59182.0,0.007]
[1725359512650,0.641774,59183.0,59182.0,0.0571524]
[1725359513355,0.641774,59183.0,59182.0,0.007]
[1725359513954,0.280974,59183.0,59182.0,0.007]
[1725359514150,0.08449,59181.0,59180.0,0.0667933]
[1725359514356,0.08449,59181.0,59179.0,0.084493]
[1725359514357,0.084492,59180.0,59179.0,0.084493]
[1725359514549,0.194892,59180.0,59179.0,0.084493]
[1725359516664,0.195892,59180.0,59179.0,0.084493]
[1725359517256,0.195892,59180.0,59179.0,0.16794749]
[1725359517257,0.196892,59180.0,59179.0,0.16794749]
[1725359517459,0.196892,59180.0,59179.0,0.084493]
[1725359517656,0.196892,59180.0,59179.0,0.16794749]
[1725359517962,0.196892,59180.0,59179.0,0.084493]
[1725359518462,0.196892,59180.0,59179.0,0.16794749]
[1725359519355,0.084493,59179.0,59178.0,0.08345449]
[1725359519564,0.084495,59178.0,59177.0,0.00025335]
[1725359519752,0.555295,59178.0,59177.0,0.00025335]
[1725359519958,0.645695,59178.0,59177.0,0.00025335]
[1725359520165,0.645295,59178.0,59177.0,0.00025335]
[1725359521561,0.646295,59178.0,59177.0,0.00025335]
[1725359521866,0.647295,59178.0,59177.0,0.00025335]
[1725359522064,0.787295,59178.0,59177.0,0.00025335]
[1725359523059,0.557295,59178.0,59177.0,0.00025335]
[1725359523255,0.7028,59178.0,59177.0,0.00025335]
[1725359538370,0.7028,59178.0,59177.0,0.08474935]
[1725359539176,0.112,59178.0,59177.0,0.08474935]
[1725359539385,0.112,59178.0,59177.0,0.21352173]
[1725359540276,0.06972812,59178.0,59177.0,0.21352173]
[1725359541975,0.06972812,59178.0,59177.0,0.30352173]
[1725359545186,0.06972812,59178.0,59177.0,0.40375917]
[1725359545580,0.06972812,59178.0,59177.0,0.30352173]
[1725359546888,0.002,59178.0,59177.0,1.57947373]
[1725359547280,0.002,59178.0,59177.0,1.45070135]
[1725359549288,0.002,59178.0,59177.0,2.38070135]
[1725359549690,0.002,59178.0,59177.0,2.89070135]
[1725359549885,0.002,59178.0,59177.0,2.98070135]
[1725359550891,0.002,59178.0,59177.0,2.89620535]
[1725359551595,0.002,59178.0,59177.0,0.08474935]
[1725359552898,0.132,59178.0,59177.0,0.08474935]